{"text_format":"1","workbook":"xlsx","n_sheets":4,"sheets":["Sys","Екатеринбург","Москва","Печать"],"not_rendered":{"charts":0,"images":0,"macros":1,"external_links":0,"defined_names":2,"comments":1,"pivot_tables":0},"unopened":[],"bounds":{"document_bytes":16777216,"sheet_cells":100000,"rows_first":2000,"rows_last":500,"rows_between":2000,"halvings":0,"cell_chars":16384,"cell_head_chars":4096},"cells_cut":0,"cells_raw":0,"read":"whole","date_system":"1900"}

{"sheet":"Sys","index":0,"n_rows":100,"n_cols":4,"rows_kept":100,"cut":false,"hidden":false,"merged":[]}
[null,null,null,{"$f":"IFERROR(INDEX(Оглавление,ROW(A1)),\"\")","v":"Sys"}]
[null,null,null,{"$f":"IFERROR(INDEX(Оглавление,ROW(A2)),\"\")","v":"Екатеринбург"}]
[null,null,null,"Москва"]
[null,null,null,"Печать"]
[null,null,null,""]
[null,null,null,""]
[null,null,null,""]
[null,null,null,""]
[null,null,null,""]
[null,null,null,""]
[null,null,null,""]
[null,null,null,""]
[null,null,null,""]
[null,null,null,""]
[null,null,null,""]
[null,null,null,""]
[null,null,null,""]
[null,null,null,""]
[null,null,null,""]
[null,null,null,""]
[null,null,null,""]
[null,null,null,""]
[null,null,null,""]
[null,null,null,""]
[null,null,null,""]
[null,null,null,""]
[null,null,null,""]
[null,null,null,""]
[null,null,null,""]
[null,null,null,""]
[null,null,null,""]
[null,null,null,""]
[null,null,null,""]
[null,null,null,""]
[null,null,null,""]
[null,null,null,""]
[null,null,null,""]
[null,null,null,""]
[null,null,null,""]
[null,null,null,""]
[null,null,null,""]
[null,null,null,""]
[null,null,null,""]
[null,null,null,""]
[null,null,null,""]
[null,null,null,""]
[null,null,null,""]
[null,null,null,""]
[null,null,null,""]
[null,null,null,""]
[null,null,null,""]
[null,null,null,""]
[null,null,null,""]
[null,null,null,""]
[null,null,null,""]
[null,null,null,""]
[null,null,null,""]
[null,null,null,""]
[null,null,null,""]
[null,null,null,""]
[null,null,null,""]
[null,null,null,""]
[null,null,null,""]
[null,null,null,""]
[null,null,null,""]
[null,null,null,{"$f":"IFERROR(INDEX(Оглавление,ROW(A66)),\"\")","v":""}]
[null,null,null,""]
[null,null,null,""]
[null,null,null,""]
[null,null,null,""]
[null,null,null,""]
[null,null,null,""]
[null,null,null,""]
[null,null,null,""]
[null,null,null,""]
[null,null,null,""]
[null,null,null,""]
[null,null,null,""]
[null,null,null,""]
[null,null,null,""]
[null,null,null,""]
[null,null,null,""]
[null,null,null,""]
[null,null,null,""]
[null,null,null,""]
[null,null,null,""]
[null,null,null,""]
[null,null,null,""]
[null,null,null,""]
[null,null,null,""]
[null,null,null,""]
[null,null,null,""]
[null,null,null,""]
[null,null,null,""]
[null,null,null,""]
[null,null,null,""]
[null,null,null,""]
[null,null,null,""]
[null,null,null,""]
[null,null,null,""]

{"sheet":"Екатеринбург","index":1,"n_rows":4,"n_cols":4,"rows_kept":4,"cut":false,"hidden":false,"merged":[]}
[]
[null,"№ \nп/п","Дата \nначала работ","Наименование объекта"]
[null,1,"2020-06-01","Объект №1 г. Екатеринбург \"Встроенно-пристроенная подземно-надземная автостоянка с помещениями трансформаторной подстанции (№3.1 по ПЗУ) – 1 этап 1 очереди строительства. Многоэтажный 5-секционный жилой дом со встроенными помещениями общественного назначения на 1-2 этажах (№1 по ПЗУ) – 3 этап 1 очереди строительства. Многоэтажный 2-секционный жилой дом со встроенными помещениями общественного назначения на 1-3 этажах, встроенной трансформаторной подстанцией (№2 по ПЗУ) и встроенно-пристроенной подземно-надземной автостоянкой (№3.2 по ПЗУ) – 2 очередь строительства, 6 этап», Свердловская область, г. Екатеринбург, ул. Азина, 22. Секция 1\""]
[null,2,"2020-07-01","Объект №2 г. Екатеринбург \"Встроенно-пристроенная подземно-надземная автостоянка с помещениями трансформаторной подстанции (№3.1 по ПЗУ) – 1 этап 1 очереди строительства. Многоэтажный 5-секционный жилой дом со встроенными помещениями общественного назначения на 1-2 этажах (№1 по ПЗУ) – 3 этап 1 очереди строительства. Многоэтажный 2-секционный жилой дом со встроенными помещениями общественного назначения на 1-3 этажах, встроенной трансформаторной подстанцией (№2 по ПЗУ) и встроенно-пристроенной подземно-надземной автостоянкой (№3.2 по ПЗУ) – 2 очередь строительства, 6 этап», Свердловская область, г. Екатеринбург, ул. Азина, 22. Секция 2\""]

{"sheet":"Москва","index":2,"n_rows":4,"n_cols":4,"rows_kept":4,"cut":false,"hidden":false,"merged":[]}
[]
[null,"№ \nп/п","Дата \nначала работ","Наименование объекта"]
[null,1,"2020-08-01","Объект №3 г. Москва \"Встроенно-пристроенная подземно-надземная автостоянка с помещениями трансформаторной подстанции (№3.1 по ПЗУ) – 1 этап 1 очереди строительства. Многоэтажный 5-секционный жилой дом со встроенными помещениями общественного назначения на 1-2 этажах (№1 по ПЗУ) – 3 этап 1 очереди строительства. Многоэтажный 2-секционный жилой дом со встроенными помещениями общественного назначения на 1-3 этажах, встроенной трансформаторной подстанцией (№2 по ПЗУ) и встроенно-пристроенной подземно-надземной автостоянкой (№3.2 по ПЗУ) – 2 очередь строительства, 6 этап», г. Москва. Секция 3\""]
[null,2,"2020-09-01","Объект №4 г. Москва \"Встроенно-пристроенная подземно-надземная автостоянка с помещениями трансформаторной подстанции (№3.1 по ПЗУ) – 1 этап 1 очереди строительства. Многоэтажный 5-секционный жилой дом со встроенными помещениями общественного назначения на 1-2 этажах (№1 по ПЗУ) – 3 этап 1 очереди строительства. Многоэтажный 2-секционный жилой дом со встроенными помещениями общественного назначения на 1-3 этажах, встроенной трансформаторной подстанцией (№2 по ПЗУ) и встроенно-пристроенной подземно-надземной автостоянкой (№3.2 по ПЗУ) – 2 очередь строительства, 6 этап», г. Москва. Секция 4\""]

{"sheet":"Печать","index":3,"n_rows":16,"n_cols":37,"rows_kept":16,"cut":false,"hidden":false,"merged":[[15,35,32,36],[15,2,32,33],[15,0,32,0],[14,35,14,36],[7,2,7,33],[14,2,14,33],[6,2,6,33],[8,2,8,33],[2,2,2,33],[3,2,3,33],[4,2,4,33],[5,2,5,33],[1,2,1,4],[1,5,1,33]]}
["Екатеринбург"]
[1,null,"Объект:",null,null,{"$f":"MID(IFERROR(VLOOKUP($A$2,INDIRECT(\"'\"&$A$1&\"'!B3:AG4\"),3,1),0),AJ2,AK2)","v":"Объект №1 г. Екатеринбург \"Встроенно-пристроенная подземно-надземная автостоянка с помещениями "},null,null,null,null,null,null,null,null,null,null,null,null,null,null,null,null,null,null,null,null,null,null,null,null,null,null,null,null,null,1,95]
[null,null,{"$f":"MID(IFERROR(VLOOKUP($A$2,INDIRECT(\"'\"&$A$1&\"'!B3:AG4\"),3,1),0),AJ3,AK3)","v":"трансформаторной подстанции (№3.1 по ПЗУ) – 1 этап 1 очереди строительства. Многоэтажный 5-секционный жилой "},null,null,null,null,null,null,null,null,null,null,null,null,null,null,null,null,null,null,null,null,null,null,null,null,null,null,null,null,null,null,null,null,{"$f":"AJ2+AK2","v":96},108]
[null,null,"дом со встроенными помещениями общественного назначения на 1-2 этажах (№1 по ПЗУ) – 3 этап 1 очереди ",null,null,null,null,null,null,null,null,null,null,null,null,null,null,null,null,null,null,null,null,null,null,null,null,null,null,null,null,null,null,null,null,204,101]
[null,null,"строительства. Многоэтажный 2-секционный жилой дом со встроенными помещениями общественного назначения на 1-3 ",null,null,null,null,null,null,null,null,null,null,null,null,null,null,null,null,null,null,null,null,null,null,null,null,null,null,null,null,null,null,null,null,305,110]
[null,null,"этажах, встроенной трансформаторной подстанцией (№2 по ПЗУ) и встроенно-пристроенной подземно-надземной ",null,null,null,null,null,null,null,null,null,null,null,null,null,null,null,null,null,null,null,null,null,null,null,null,null,null,null,null,null,null,null,null,415,104]
[null,null,"автостоянкой (№3.2 по ПЗУ) – 2 очередь строительства, 6 этап», Свердловская область, г. Екатеринбург, ул. Азина, 22. ",null,null,null,null,null,null,null,null,null,null,null,null,null,null,null,null,null,null,null,null,null,null,null,null,null,null,null,null,null,null,null,null,519,117]
[null,null,{"$f":"MID(IFERROR(VLOOKUP($A$2,INDIRECT(\"'\"&$A$1&\"'!B3:AG4\"),3,1),0),AJ8,AK8)","v":"Секция 1\""},null,null,null,null,null,null,null,null,null,null,null,null,null,null,null,null,null,null,null,null,null,null,null,null,null,null,null,null,null,null,null,null,{"$f":"AJ7+AK7","v":636},100]
[null,null,"",null,null,null,null,null,null,null,null,null,null,null,null,null,null,null,null,null,null,null,null,null,null,null,null,null,null,null,null,null,null,null,null,{"$f":"AJ8+AK8","v":736},100]
[]
[]
[]
[]
[]
[]
["Выше выбираю город и номер объекта",null,"Выше, цветом выделены строки с формулами, справа - регулятор длинны символов в строке.\nПроблема заключается в том, что при смене города и объекта - нужно вручную корректировать количество символов в строке для того чтобы слова не обрывались на пол слова...\n\n\n1) Необходимо решить данную задачу - модернизацией формулы таким образом, чтобы: \n- если целиком слово не влезает на строку, то переносить его на следующую строку\n- или внедрить \"знак переноса\" в невлазающие целиком слова по правилам русского языка\n\n2) Нужны кнопки для скрытия и раскрытия пустых строк.\n",null,null,null,null,null,null,null,null,null,null,null,null,null,null,null,null,null,null,null,null,null,null,null,null,null,null,null,null,null,null,null,null,"Если задача будет решена, то и эти два столбца окажутся лишними"]